[Event "5th Thessaloniki SKG Open-B 2024"]
[Site "Thessaloniki"]
[Date "2024.08.09"]
[Round "5.4"]
[White "Seretis, Nikolaos G"]
[Black "Keramaros, Vasileios"]
[Result "1-0"]
[ECO "C54"]
[WhiteElo "1675"]
[BlackElo "1719"]
[Annotator "NA RC"]
[PlyCount "49"]
[EventDate "2024.08.05"]
[EventType "swiss"]
[EventCountry "GRE"]
[SourceTitle "playchess.com"]
[Source "ChessBase"]
[SourceQuality "1"]
[TimeControl "40/5400+30:1800+30"]

1. e4 {[%emt 0:00:06]} e5 {[%emt 0:00:07]} 2. Nf3 {[%emt 0:00:17]} Nc6 {[%emt 0:00:04]} 3. Bc4 {[%emt 0:00:21]} Bc5 {[%emt 0:00:04]} 4. O-O {[%emt 0:00:12]} Nf6 {[%emt 0:00:03]} 5. d3 {[%emt 0:00:09]} h6 {[%emt 0:00:17]} 6. c3 {[%emt 0:00:10]} d6 {[%emt 0:00:23]} 7. Nbd2 {[%emt 0:00:11]} O-O {[%emt 0:00:16]} 8. Bb3 {[%emt 0:00:09]} Be6 {[%emt 0:00:07]} 9. Bc2 {[%emt 0:00:04]} a6 {[%emt 0:00:15]} 10. h3 {[%emt 0:00:08]} Ba7 {[%emt 0:00:23]} 11. Re1 {[%emt 0:00:46]} Qd7 {[%emt 0:00:41]} 12. Nf1 {[%emt 0:00:42]} Nh7 {[%emt 0:02:19]} 13. Ng3 {[%emt 0:00:24]} f5 {[%emt 0:01:31]} 14. exf5 {[%emt 0:01:24]} Bxf5 {[%emt 0:00:13]} 15. Nxf5 {[%emt 0:01:09]} Qxf5 {[%emt 0:00:15]} 16. d4 {[%emt 0:00:48]} Qf6 {[%emt 0:00:09]} 17. Qd3 {[%emt 0:07:59]} Ng5 {[%emt 0:02:04]} 18. Nxg5 {[%emt 0:00:46]} hxg5 {[%emt 0:03:34]} 19. Qh7+ {[%emt 0:01:00]} Kf7 {[%emt 0:00:12]} 20. Qh5+ {[%emt 0:00:41]} g6 {[%emt 0:00:10]} 21. Qh7+ {[%emt 0:00:30]} Ke6 {[%emt 0:01:18]} 22. d5+ {[%emt 0:01:08]} Kxd5 {[%emt 0:00:17]} 23. Bb3+ {[%emt 0:01:11]} Kc5 {[%emt 0:00:11]} 24. Be3+ {[%emt 0:00:23]} Nd4 {[%emt 0:00:58]} 25. Qxc7+ {[%emt 0:00:24]} 1-0

[Event "5th Thessaloniki SKG Open-B 2024"]
[Site "Thessaloniki"]
[Date "2024.08.09"]
[Round "5.5"]
[White "Bulut, Kemal"]
[Black "Vakalopoulos, Hristos"]
[Result "1/2-1/2"]
[ECO "B33"]
[WhiteElo "1664"]
[BlackElo "1866"]
[Annotator "NA RC"]
[PlyCount "53"]
[EventDate "2024.08.05"]
[EventType "swiss"]
[EventCountry "GRE"]
[SourceTitle "playchess.com"]
[Source "ChessBase"]
[SourceQuality "1"]
[TimeControl "40/5400+30:1800+30"]

1. e4 {[%emt 0:02:44]} c5 {[%emt 0:00:03]} 2. Nf3 {[%emt 0:00:14]} e6 {[%emt 0:00:06]} 3. d4 {[%emt 0:00:17]} cxd4 {[%emt 0:00:05]} 4. Nxd4 {[%emt 0:00:27]} Nf6 {[%emt 0:00:04]} 5. Nc3 {[%emt 0:04:08]} Nc6 {[%emt 0:00:04]} 6. Ndb5 {[%emt 0:00:21]} d6 {[%emt 0:01:39]} 7. Bf4 {[%emt 0:05:42]} e5 {[%emt 0:00:04]} 8. Bg5 {[%emt 0:00:18]} a6 {[%emt 0:00:11]} 9. Na3 {[%emt 0:00:08]} b5 {[%emt 0:02:03]} 10. Nd5 {[%emt 0:04:01]} Be7 {[%emt 0:00:44]} 11. Bxf6 {[%emt 0:00:19]} Bxf6 {[%emt 0:00:23]} 12. c3 {[%emt 0:02:36]} Bg5 {[%emt 0:01:43]} 13. Nc2 {[%emt 0:00:34]} Be6 {[%emt 0:01:21]} 14. a4 {[%emt 0:02:34]} Rb8 {[%emt 0:30:29]} 15. axb5 {[%emt 0:09:45]} axb5 {[%emt 0:00:09]} 16. Be2 {[%emt 0:00:17]} O-O {[%emt 0:01:39]} 17. O-O {[%emt 0:00:31]} Bxd5 {[%emt 0:08:49]} 18. exd5 {[%emt 0:10:58]} Ne7 {[%emt 0:00:38]} 19. Nb4 {[%emt 0:01:23]} Qb6 {[%emt 0:07:26]} 20. Ra6 {[%emt 0:05:49]} Qc5 {[%emt 0:01:42]} 21. Qb3 {[%emt 0:11:53]} Ra8 {[%emt 0:12:23]} 22. Rfa1 {[%emt 0:07:50]} Rxa6 {[%emt 0:00:10]} 23. Nxa6 {[%emt 0:02:28]} Qxd5 {[%emt 0:00:54]} 24. Qxd5 {[%emt 0:00:06]} Nxd5 {[%emt 0:00:05]} 25. Rd1 {[%emt 0:00:37]} Nf4 {[%emt 0:06:06]} 26. Bxb5 {[%emt 0:00:16]} Be7 {[%emt 0:01:34]} 27. Nb4 {[%emt 0:01:47]} 1/2-1/2

[Event "5th Thessaloniki SKG Open-B 2024"]
[Site "Thessaloniki"]
[Date "2024.08.09"]
[Round "5.6"]
[White "Gkogkolas, Georgios"]
[Black "Nakitsas, Stergios"]
[Result "1/2-1/2"]
[ECO "C06"]
[WhiteElo "1690"]
[BlackElo "1759"]
[Annotator "NA RC"]
[PlyCount "87"]
[EventDate "2024.08.05"]
[EventType "swiss"]
[EventCountry "GRE"]
[SourceTitle "playchess.com"]
[Source "ChessBase"]
[SourceQuality "1"]
[TimeControl "40/5400+30:1800+30"]

1. e4 {[%emt 0:00:04]} e6 {[%emt 0:00:08]} 2. d4 {[%emt 0:00:06]} d5 {[%emt 0:00:07]} 3. Nd2 {[%emt 0:00:07]} Nf6 {[%emt 0:00:07]} 4. e5 {[%emt 0:00:06]} Nfd7 {[%emt 0:00:04]} 5. c3 {[%emt 0:00:17]} c5 {[%emt 0:00:20]} 6. Bd3 {[%emt 0:00:16]} Nc6 {[%emt 0:00:06]} 7. Ngf3 {[%emt 0:00:06]} Qb6 {[%emt 0:03:21]} 8. O-O {[%emt 0:00:18]} cxd4 {[%emt 0:02:40]} 9. cxd4 {[%emt 0:00:10]} Nxd4 {[%emt 0:00:32]} 10. Nxd4 {[%emt 0:00:07]} Qxd4 {[%emt 0:00:03]} 11. Nf3 {[%emt 0:00:08]} Qb6 {[%emt 0:01:38]} 12. Qc2 {[%emt 0:00:10]} Qc6 {[%emt 0:09:42]} 13. Bxh7 {[%emt 0:04:45]} a6 {[%emt 0:11:25]} 14. Be3 {[%emt 0:04:19]} Qxc2 {[%emt 0:04:36]} 15. Bxc2 {[%emt 0:00:11]} Rh5 {[%emt 0:05:35]} 16. Bd4 {[%emt 0:10:20]} Bc5 {[%emt 0:03:01]} 17. Bxc5 {[%emt 0:03:41]} Nxc5 {[%emt 0:00:03]} 18. Rfe1 {[%emt 0:00:26]} Bd7 {[%emt 0:02:49]} 19. Nd4 {[%emt 0:02:12]} Rh4 {[%emt 0:03:36]} 20. Rad1 {[%emt 0:05:50]} Rc8 {[%emt 0:00:54]} 21. g3 {[%emt 0:04:18]} Rh8 {[%emt 0:02:30]} 22. Rc1 {[%emt 0:06:19]} Ke7 {[%emt 0:02:32]} 23. Kg2 {[%emt 0:08:51]} Na4 {[%emt 0:08:25]} 24. b3 {[%emt 0:10:25]} Nc3 {[%emt 0:00:56]} 25. Bb1 {[%emt 0:13:35]} Nb5 {[%emt 0:02:22]} 26. Ne2 {[%emt 0:03:30]} Na7 {[%emt 0:03:38]} 27. Bd3 {[%emt 0:02:21]} Bb5 {[%emt 0:01:04]} 28. Bxb5 {[%emt 0:01:37]} Nxb5 {[%emt 0:00:16]} 29. a4 {[%emt 0:01:18]} Na7 {[%emt 0:00:10]} 30. Nd4 {[%emt 0:02:30]} Nc6 {[%emt 0:00:37]} 31. Nxc6+ {[%emt 0:00:52]} Rxc6 {[%emt 0:00:02]} 32. Rxc6 {[%emt 0:00:42]} bxc6 {[%emt 0:00:02]} 33. Rc1 {[%emt 0:00:09]} Kd7 {[%emt 0:00:05]} 34. Rc3 {[%emt 0:02:56]} Rh5 {[%emt 0:02:17]} 35. f4 {[%emt 0:00:41]} Rh8 {[%emt 0:00:04]} 36. h4 {[%emt 0:00:37]} Rb8 {[%emt 0:01:34]} 37. g4 {[%emt 0:01:34]} Rb4 {[%emt 0:03:17]} 38. Kf3 {[%emt 0:00:25]} c5 {[%emt 0:00:28]} 39. h5 {[%emt 0:03:48]} c4 {[%emt 0:05:54]} 40. bxc4 {[%emt 0:00:00]} dxc4 {[%emt 0:00:00]} 41. Ke4 {[%emt 0:01:52]} Rxa4 {[%emt 0:00:51]} 42. Kd4 {[%emt 0:02:52]} Ra1 {[%emt 0:00:36]} 43. Rxc4 {[%emt 0:01:35]} Rg1 {[%emt 0:00:12]} 44. Ke4 {[%emt 0:36:04]} 1/2-1/2

[Event "5th Thessaloniki SKG Open-B 2024"]
[Site "Thessaloniki"]
[Date "2024.08.09"]
[Round "5.7"]
[White "Zaganas, Konstantinos"]
[Black "Ioannidis, Konstantinos I"]
[Result "0-1"]
[ECO "E90"]
[WhiteElo "1747"]
[BlackElo "1683"]
[Annotator "NA RC"]
[PlyCount "98"]
[EventDate "2024.08.05"]
[EventType "swiss"]
[EventCountry "GRE"]
[SourceTitle "playchess.com"]
[Source "ChessBase"]
[SourceQuality "1"]
[TimeControl "40/5400+30:1800+30"]

1. Nf3 {[%emt 0:00:09]} Nf6 {[%emt 0:00:13]} 2. d4 {[%emt 0:00:30]} g6 {[%emt 0:00:32]} 3. c4 {[%emt 0:07:30]} Bg7 {[%emt 0:00:05]} 4. Nc3 {[%emt 0:00:46]} O-O {[%emt 0:00:13]} 5. e4 {[%emt 0:03:10]} d6 {[%emt 0:00:21]} 6. Be3 {[%emt 0:00:14]} e5 {[%emt 0:00:15]} 7. d5 {[%emt 0:02:53]} a5 {[%emt 0:03:20]} 8. a4 {[%emt 0:00:23]} Na6 {[%emt 0:00:09]} 9. h3 {[%emt 0:04:16]} Nc5 {[%emt 0:01:07]} 10. Bd3 {[%emt 0:02:31]} Nfd7 {[%emt 0:01:53]} 11. Bc2 {[%emt 0:03:36]} f5 {[%emt 0:01:49]} 12. exf5 {[%emt 0:06:46]} gxf5 {[%emt 0:00:24]} 13. Bd2 {[%emt 0:30:03]} h6 {[%emt 0:17:27]} 14. Qe2 {[%emt 0:01:48]} e4 {[%emt 0:01:25]} 15. Nh2 {[%emt 0:01:32]} Ne5 {[%emt 0:00:45]} 16. O-O-O {[%emt 0:01:41]} Ned3+ {[%emt 0:04:27]} 17. Kb1 {[%emt 0:05:14]} Nb4 {[%emt 0:07:31]} 18. Bf4 {[%emt 0:08:51]} Nxc2 {[%emt 0:01:17]} 19. Qxc2 {[%emt 0:00:28]} Nd3 {[%emt 0:00:31]} 20. Rxd3 {[%emt 0:03:43]} exd3 {[%emt 0:00:07]} 21. Qxd3 {[%emt 0:00:23]} Bd7 {[%emt 0:04:24]} 22. b3 {[%emt 0:03:46]} Qf6 {[%emt 0:00:31]} 23. Bd2 {[%emt 0:02:37]} Rae8 {[%emt 0:02:42]} 24. Nf3 {[%emt 0:03:25]} f4 {[%emt 0:00:43]} 25. Ka2 {[%emt 0:01:10]} Qf5 {[%emt 0:01:31]} 26. Qxf5 {[%emt 0:02:48]} Bxf5 {[%emt 0:00:11]} 27. Rf1 {[%emt 0:02:22]} Bd3 {[%emt 0:00:48]} 28. Rc1 {[%emt 0:00:37]} b6 {[%emt 0:01:00]} 29. Ka3 {[%emt 0:00:51]} Be2 {[%emt 0:01:40]} 30. Nb5 {[%emt 0:00:32]} Bxf3 {[%emt 0:00:11]} 31. gxf3 {[%emt 0:00:12]} Re2 {[%emt 0:00:14]} 32. Bc3 {[%emt 0:00:11]} Bxc3 {[%emt 0:00:14]} 33. Rxc3 {[%emt 0:00:33]} Rf7 {[%emt 0:00:25]} 34. Nd4 {[%emt 0:00:17]} Rxf2 {[%emt 0:00:15]} 35. Rc1 {[%emt 0:00:53]} Re7 {[%emt 0:03:00]} 36. Ne6 {[%emt 0:00:54]} Rxf3 {[%emt 0:01:09]} 37. h4 {[%emt 0:00:38]} Kf7 {[%emt 0:01:00]} 38. Rg1 {[%emt 0:00:36]} Rg3 {[%emt 0:01:23]} 39. Rf1 {[%emt 0:00:18]} f3 {[%emt 0:00:14]} 40. Kb2 {[%emt 0:00:00]} Rxe6 {[%emt 0:00:00]} 41. dxe6+ {[%emt 0:00:45]} Kxe6 {[%emt 0:03:19]} 42. Kc2 {[%emt 0:00:09]} Ke5 {[%emt 0:00:04]} 43. Kd2 {[%emt 0:01:34]} Kf4 {[%emt 0:00:09]} 44. h5 {[%emt 0:01:03]} Rg2+ {[%emt 0:00:09]} 45. Kd3 {[%emt 0:00:16]} Re2 {[%emt 0:00:25]} 46. Rg1 {[%emt 0:01:06]} f2 {[%emt 0:00:55]} 47. Rg7 {[%emt 0:00:28]} Re3+ {[%emt 0:00:02]} 48. Kd2 {[%emt 0:01:07]} Rf3 {[%emt 0:00:04]} 49. Rf7+ {[%emt 0:01:19]} Kg3 {[%emt 0:00:08]} 0-1

[Event "5th Thessaloniki SKG Open-B 2024"]
[Site "Thessaloniki"]
[Date "2024.08.10"]
[Round "6.1"]
[White "Triantaphylidis, Alexandros I"]
[Black "Polyzos, Vasileios"]
[Result "0-1"]
[ECO "A67"]
[WhiteElo "1745"]
[BlackElo "1700"]
[Annotator "NA RC"]
[PlyCount "68"]
[EventDate "2024.08.05"]
[EventType "swiss"]
[EventCountry "GRE"]
[SourceTitle "playchess.com"]
[Source "ChessBase"]
[SourceQuality "1"]
[TimeControl "40/5400+30:1800+30"]

1. d4 {[%emt 0:00:03]} Nf6 {[%emt 0:00:09]} 2. c4 {[%emt 0:00:06]} c5 {[%emt 0:00:24]} 3. d5 {[%emt 0:00:05]} e6 {[%emt 0:00:06]} 4. Nc3 {[%emt 0:00:05]} exd5 {[%emt 0:00:10]} 5. cxd5 {[%emt 0:00:02]} d6 {[%emt 0:00:08]} 6. e4 {[%emt 0:00:06]} g6 {[%emt 0:00:25]} 7. f4 {[%emt 0:00:06]} Bg7 {[%emt 0:00:31]} 8. Bb5+ {[%emt 0:00:05]} Nfd7 {[%emt 0:00:26]} 9. Be2 {[%emt 0:00:12]} Qh4+ {[%emt 0:00:48]} 10. g3 {[%emt 0:00:40]} Qd8 {[%emt 0:00:11]} 11. Nf3 {[%emt 0:00:26]} O-O {[%emt 0:02:20]} 12. O-O {[%emt 0:00:12]} Re8 {[%emt 0:06:14]} 13. Qc2 {[%emt 0:06:46]} Na6 {[%emt 0:03:33]} 14. a3 {[%emt 0:03:34]} Nc7 {[%emt 0:03:37]} 15. f5 {[%emt 0:55:13]} Ne5 {[%emt 0:03:54]} 16. Nxe5 {[%emt 0:00:14]} Bxe5 {[%emt 0:01:41]} 17. Bf4 {[%emt 0:04:52]} gxf5 {[%emt 0:14:14]} 18. Rad1 {[%emt 0:07:30]} Bd4+ {[%emt 0:13:25]} 19. Kg2 {[%emt 0:00:45]} fxe4 {[%emt 0:01:36]} 20. Nxe4 {[%emt 0:05:45]} Nxd5 {[%emt 0:04:28]} 21. Bh5 {[%emt 0:03:45]} Be6 {[%emt 0:09:49]} 22. Ng5 {[%emt 0:02:06]} Nf6 {[%emt 0:09:23]} 23. Bxf7+ {[%emt 0:03:02]} Bxf7 {[%emt 0:01:56]} 24. Nxf7 {[%emt 0:00:03]} Kxf7 {[%emt 0:02:20]} 25. Bg5 {[%emt 0:00:22]} Kg8 {[%emt 0:03:20]} 26. Rxd4 {[%emt 0:01:20]} cxd4 {[%emt 0:00:13]} 27. Rxf6 {[%emt 0:00:47]} Qd7 {[%emt 0:01:50]} 28. Bh6 {[%emt 0:04:53]} Qc6+ {[%emt 0:01:08]} 29. Qxc6 {[%emt 0:00:11]} bxc6 {[%emt 0:00:07]} 30. Rxd6 {[%emt 0:00:04]} c5 {[%emt 0:01:56]} 31. Kf3 {[%emt 0:01:38]} Rad8 {[%emt 0:03:20]} 32. Rxd8 {[%emt 0:00:30]} Rxd8 {[%emt 0:00:28]} 33. Ke2 {[%emt 0:00:01]} Rb8 {[%emt 0:00:54]} 34. Bc1 {[%emt 0:00:17]} Rb3 {[%emt 0:00:29]} 0-1

[Event "5th Thessaloniki SKG Open-B 2024"]
[Site "Thessaloniki"]
[Date "2024.08.10"]
[Round "6.2"]
[White "Avanesyan, Aleksandr"]
[Black "Seretis, Nikolaos G"]
[Result "1/2-1/2"]
[ECO "B20"]
[WhiteElo "1700"]
[BlackElo "1675"]
[Annotator "NA"]
[PlyCount "100"]
[EventDate "2024.08.05"]
[EventType "swiss"]
[EventCountry "GRE"]
[SourceTitle "playchess.com"]
[Source "ChessBase"]
[SourceQuality "1"]
[TimeControl "40/5400+30:1800+30"]

1. e4 {[%emt 0:00:04]} c5 {[%emt 0:00:06]} 2. c4 {[%emt 0:00:04]} e5 {[%emt 0:01:18]} 3. Nc3 {[%emt 0:00:19]} Nc6 {[%emt 0:00:15]} 4. g3 {[%emt 0:00:14]} Nf6 {[%emt 0:02:48]} 5. Bg2 {[%emt 0:00:08]} Be7 {[%emt 0:00:19]} 6. d3 {[%emt 0:00:12]} h6 {[%emt 0:00:13]} 7. Nge2 {[%emt 0:00:08]} O-O {[%emt 0:00:11]} 8. O-O {[%emt 0:00:15]} d6 {[%emt 0:00:43]} 9. h3 {[%emt 0:00:14]} Nh7 {[%emt 0:07:32]} 10. Nd5 {[%emt 0:02:12]} f5 {[%emt 0:01:29]} 11. f4 {[%emt 0:02:04]} fxe4 {[%emt 0:02:06]} 12. dxe4 {[%emt 0:00:14]} Nf6 {[%emt 0:01:09]} 13. Nxe7+ {[%emt 0:05:48]} Qxe7 {[%emt 0:00:21]} 14. f5 {[%emt 0:00:26]} Nd4 {[%emt 0:05:10]} 15. Nc3 {[%emt 0:01:46]} b6 {[%emt 0:01:08]} 16. g4 {[%emt 0:00:52]} Nh7 {[%emt 0:03:40]} 17. Be3 {[%emt 0:05:59]} Bb7 {[%emt 0:01:25]} 18. Rc1 {[%emt 0:01:48]} Bc6 {[%emt 0:04:08]} 19. Qe1 {[%emt 0:02:35]} Kf7 {[%emt 0:09:14]} 20. Qg3 {[%emt 0:08:52]} Ke8 {[%emt 0:04:55]} 21. h4 {[%emt 0:01:10]} Kd7 {[%emt 0:08:02]} 22. Bh3 {[%emt 0:07:11]} Kc7 {[%emt 0:03:18]} 23. Bxd4 {[%emt 0:06:11]} exd4 {[%emt 0:03:32]} 24. Nd5+ {[%emt 0:00:07]} Bxd5 {[%emt 0:00:11]} 25. exd5 {[%emt 0:00:08]} Qe5 {[%emt 0:03:13]} 26. Qf2 {[%emt 0:00:58]} Nf6 {[%emt 0:10:21]} 27. Rce1 {[%emt 0:01:38]} Ne4 {[%emt 0:00:09]} 28. Rxe4 {[%emt 0:01:12]} Qxe4 {[%emt 0:00:17]} 29. Re1 {[%emt 0:00:04]} Qd3 {[%emt 0:00:29]} 30. Bf1 {[%emt 0:00:12]} Qe3 {[%emt 0:03:24]} 31. Rxe3 {[%emt 0:00:03]} dxe3 {[%emt 0:00:03]} 32. Qxe3 {[%emt 0:00:03]} Rae8 {[%emt 0:00:19]} 33. Qa3 {[%emt 0:00:33]} Kb7 {[%emt 0:00:47]} 34. Qa4 {[%emt 0:00:06]} Re4 {[%emt 0:03:17]} 35. Qd7+ {[%emt 0:00:51]} Ka6 {[%emt 0:00:58]} 36. Qxg7 {[%emt 0:00:11]} Rfe8 {[%emt 0:00:21]} 37. f6 {[%emt 0:00:18]} Rf4 {[%emt 0:00:34]} 38. f7 {[%emt 0:00:42]} Re1 {[%emt 0:00:29]} 39. Kg2 {[%emt 0:06:51]} Rexf1 {[%emt 0:05:41]} 40. Qc3 {[%emt 0:00:00]} Rxf7 {[%emt 0:00:00]} 41. Qe3 {[%emt 0:04:20]} R1f4 {[%emt 0:03:00]} 42. Kg3 {[%emt 0:03:55]} R4f6 {[%emt 0:03:40]} 43. h5 {[%emt 0:01:53]} Kb7 {[%emt 0:01:27]} 44. Kh4 {[%emt 0:01:09]} Rf4 {[%emt 0:02:27]} 45. Kg3 {[%emt 0:01:00]} R4f6 {[%emt 0:00:22]} 46. a3 {[%emt 0:03:09]} a5 {[%emt 0:00:36]} 47. Kh4 {[%emt 0:04:55]} Rf4 {[%emt 0:00:12]} 48. Kg3 {[%emt 0:00:01]} R4f6 {[%emt 0:00:08]} 49. Kh4 {[%emt 0:00:02]} Rf4 {[%emt 0:00:08]} 50. Kg3 {[%emt 0:00:04]} R4f6 {[%emt 0:00:06]} 1/2-1/2

[Event "5th Thessaloniki SKG Open-B 2024"]
[Site "Thessaloniki"]
[Date "2024.08.10"]
[Round "6.3"]
[White "Naci, Igli"]
[Black "Ioannidis, Konstantinos I"]
[Result "0-1"]
[ECO "B22"]
[WhiteElo "1800"]
[BlackElo "1683"]
[Annotator "NA RC"]
[PlyCount "146"]
[EventDate "2024.08.05"]
[EventType "swiss"]
[EventCountry "GRE"]
[SourceTitle "playchess.com"]
[Source "ChessBase"]
[SourceQuality "1"]
[TimeControl "40/5400+30:1800+30"]

1. e4 {[%emt 0:00:02]} c5 {[%emt 0:00:06]} 2. Nf3 {[%emt 0:01:53]} e6 {[%emt 0:00:14]} 3. c3 {[%emt 0:02:09]} Nf6 {[%emt 0:00:32]} 4. e5 {[%emt 0:02:53]} Nd5 {[%emt 0:00:20]} 5. d4 {[%emt 0:00:40]} cxd4 {[%emt 0:00:06]} 6. cxd4 {[%emt 0:00:19]} d6 {[%emt 0:00:05]} 7. a3 {[%emt 0:02:39]} Nc6 {[%emt 0:03:31]} 8. Bd3 {[%emt 0:06:45]} dxe5 {[%emt 0:03:15]} 9. dxe5 {[%emt 0:00:13]} Bd7 {[%emt 0:09:16]} 10. O-O {[%emt 0:01:11]} Be7 {[%emt 0:01:35]} 11. Qe2 {[%emt 0:04:12]} O-O {[%emt 0:00:42]} 12. Qe4 {[%emt 0:07:06]} f5 {[%emt 0:01:54]} 13. exf6 {[%emt 0:00:55]} Nxf6 {[%emt 0:00:05]} 14. Qe2 {[%emt 0:02:12]} Nd5 {[%emt 0:10:31]} 15. Nc3 {[%emt 0:07:21]} Nxc3 {[%emt 0:05:19]} 16. bxc3 {[%emt 0:00:05]} Bf6 {[%emt 0:00:15]} 17. Rb1 {[%emt 0:05:15]} b6 {[%emt 0:00:56]} 18. Rd1 {[%emt 0:06:14]} Qe7 {[%emt 0:02:39]} 19. Bf4 {[%emt 0:09:52]} e5 {[%emt 0:13:07]} 20. Qe4 {[%emt 0:03:29]} g6 {[%emt 0:01:04]} 21. Bh6 {[%emt 0:04:26]} Rfc8 {[%emt 0:03:22]} 22. Bb5 {[%emt 0:10:11]} Bf5 {[%emt 0:02:17]} 23. Qd5+ {[%emt 0:01:56]} Qe6 {[%emt 0:01:22]} 24. Qxe6+ {[%emt 0:01:11]} Bxe6 {[%emt 0:00:16]} 25. Rd6 {[%emt 0:01:00]} Nd8 {[%emt 0:00:18]} 26. Ng5 {[%emt 0:04:05]} Bxg5 {[%emt 0:02:06]} 27. Bxg5 {[%emt 0:00:15]} Bf5 {[%emt 0:01:06]} 28. Bd7 {[%emt 0:16:01]} Nf7 {[%emt 0:05:45]} 29. Bxc8 {[%emt 0:00:00]} Rxc8 {[%emt 0:01:20]} 30. Rbd1 {[%emt 0:00:00]} Nxd6 {[%emt 0:03:54]} 31. Rxd6 {[%emt 0:00:00]} Rxc3 {[%emt 0:00:18]} 32. Bh6 {[%emt 0:00:00]} Rxa3 {[%emt 0:07:25]} 33. f3 {[%emt 0:00:00]} Kf7 {[%emt 0:00:41]} 34. Rc6 {[%emt 0:00:00]} Rd3 {[%emt 0:00:43]} 35. Rc7+ {[%emt 0:00:00]} Rd7 {[%emt 0:00:06]} 36. Rc6 {[%emt 0:00:00]} Be6 {[%emt 0:00:35]} 37. Kf2 {[%emt 0:00:00]} Rb7 {[%emt 0:04:12]} 38. Be3 {[%emt 0:00:39]} Bd7 {[%emt 0:00:41]} 39. Rc1 {[%emt 0:01:10]} b5 {[%emt 0:01:41]} 40. Ra1 {[%emt 0:00:00]} b4 {[%emt 0:00:00]} 41. Bc1 {[%emt 0:03:51]} Rc7 {[%emt 0:01:45]} 42. Ke3 {[%emt 0:01:44]} a5 {[%emt 0:03:15]} 43. Bb2 {[%emt 0:01:09]} Rc5 {[%emt 0:00:30]} 44. Rd1 {[%emt 0:03:37]} Ke6 {[%emt 0:01:00]} 45. f4 {[%emt 0:00:29]} exf4+ {[%emt 0:00:41]} 46. Kxf4 {[%emt 0:00:05]} Rc2 {[%emt 0:00:57]} 47. Re1+ {[%emt 0:00:54]} Kd5 {[%emt 0:00:51]} 48. Bg7 {[%emt 0:00:30]} Bf5 {[%emt 0:00:54]} 49. Re5+ {[%emt 0:00:12]} Kc4 {[%emt 0:00:08]} 50. g4 {[%emt 0:02:08]} Bd3 {[%emt 0:00:37]} 51. Rxa5 {[%emt 0:00:04]} b3 {[%emt 0:00:47]} 52. Ra7 {[%emt 0:05:22]} Rxh2 {[%emt 0:02:27]} 53. Rb7 {[%emt 0:00:45]} h5 {[%emt 0:00:46]} 54. gxh5 {[%emt 0:02:02]} gxh5 {[%emt 0:00:06]} 55. Kg3 {[%emt 0:02:48]} Rh1 {[%emt 0:02:02]} 56. Bf6 {[%emt 0:00:14]} Rf1 {[%emt 0:04:06]} 57. Bg7 {[%emt 0:00:42]} Rf5 {[%emt 0:00:40]} 58. Kh4 {[%emt 0:00:56]} Be2 {[%emt 0:01:31]} 59. Re7 {[%emt 0:03:41]} Bg4 {[%emt 0:01:06]} 60. Re4+ {[%emt 0:04:18]} Kd3 {[%emt 0:06:13]} 61. Rb4 {[%emt 0:00:03]} Bd1 {[%emt 0:02:17]} 62. Rb7 {[%emt 0:01:09]} Rf4+ {[%emt 0:01:06]} 63. Kg3 {[%emt 0:01:00]} Rg4+ {[%emt 0:02:03]} 64. Kh3 {[%emt 0:00:03]} Rxg7 {[%emt 0:01:07]} 65. Rxg7 {[%emt 0:00:05]} b2 {[%emt 0:00:12]} 66. Rb7 {[%emt 0:02:48]} Kc2 {[%emt 0:00:05]} 67. Rc7+ {[%emt 0:01:03]} Kb3 {[%emt 0:00:20]} 68. Rb7+ {[%emt 0:01:02]} Ka3 {[%emt 0:00:04]} 69. Rxb2 {[%emt 0:04:44]} Kxb2 {[%emt 0:00:07]} 70. Kh4 {[%emt 0:00:01]} Kc3 {[%emt 0:00:07]} 71. Kh3 {[%emt 0:00:04]} Kd4 {[%emt 0:00:03]} 72. Kg3 {[%emt 0:00:05]} Ke4 {[%emt 0:00:04]} 73. Kh3 {[%emt 0:00:03]} Bg4+ {[%emt 0:00:17]} 0-1